fUST/lending_fUST_20251126
["ID","MTS","AMOUNT","RATE_DAILY","PERIOD"]
[394894793,1764089438861,-500.0,4.973e-05,2]
[394894794,1764089438871,-500.0,4.973e-05,2]
[394894795,1764089438880,-278.88618428,4.973e-05,2]
[394894796,1764089438890,-335.63648225,4.973e-05,2]
[394894886,1764089440964,-76.6457047,4.973e-05,2]
[394895134,1764089545709,300.0,3.959e-05,2]
[394895136,1764089618211,150.0,7.252e-05,30]
[394895138,1764089660146,663.3846848,3.959e-05,2]
[394895139,1764089669345,201.28224585,0.0002088,120]
[394895140,1764089681428,237.42277147,0.00020978,120]
[394895141,1764089715236,600.0,0.00021352,120]
[394895142,1764089832239,-300.0,3.998e-05,2]
[394895143,1764089832269,-330.20255557,3.999e-05,2]
[394895144,1764089839517,630.18896473,0.00014,10]
[394895145,1764089967274,-220.96253598,3.998e-05,2]
[394895146,1764089968874,-212.24367788,3.998e-05,2]
[394895147,1764089971263,-292.14156167,3.998e-05,2]
[394895148,1764089974346,-305.83179233,3.998e-05,2]
[394895149,1764089976242,-122.82043214,3.998e-05,2]
[394895150,1764089976263,-33.99520929,3.999e-05,2]
[394895151,1764089978371,-159.59747866,3.999e-05,2]
[394895152,1764089979950,-134.14065706,3.999e-05,2]
[394895153,1764089979972,-89.0780952,3.999e-05,2]
[394895154,1764089982077,-155.22554168,3.999e-05,2]
[394895155,1764089984091,-55.69636312,3.999e-05,2]
[394895156,1764089984113,-205.68742947,3.999e-05,2]
[394895157,1764089985584,-94.31257053,3.999e-05,2]
[394895158,1764089985607,-144.30363688,3.999e-05,2]
[394895159,1764089987621,-176.65198447,3.999e-05,2]
[394895160,1764089990873,-163.44,3.999e-05,2]
[394895161,1764089993394,-326.83666516,3.999e-05,2]
[394895162,1764089996024,-228.66283741,3.999e-05,2]
[394895163,1764089998089,-160.10487608,3.999e-05,2]
[394895164,1764089998111,-13.35925173,3.999e-05,2]
[394895165,1764090001820,-279.49427357,4e-05,2]
[394895166,1764090002909,-223.56036777,3.999e-05,2]
[394895167,1764090006640,-76.43963223,3.999e-05,2]
[394895168,1764090006662,-123.56036777,3.999e-05,2]
[394895169,1764090008078,-176.43963223,3.999e-05,2]
[394895170,1764090008100,-55.03502563,3.999e-05,2]
[394895171,1764090027808,-206.68240134,3.999e-05,2]
[394895172,1764090057236,-66.28257303,3.999e-05,2]
[394895173,1764090057261,-89.78779095,4e-05,2]
[394895174,1764090152468,158.298879,0.0002,30]
[394895175,1764090232402,-1200.0,3.999e-05,2]
[394895176,1764090232436,-300.0,3.999e-05,2]
[394895177,1764090242334,300.0,3.999e-05,2]
[394895178,1764090247989,-7738.55183808,4e-05,2]
[394895179,1764090248101,-10000.01,4e-05,2]
[394895180,1764090248247,-10000.01,4e-05,2]
[394895181,1764090248367,-10000.01,4e-05,2]
[394895182,1764090248491,-10000.01,4e-05,2]
[394895186,1764090257291,-296.63610113,3.96e-05,2]
[394895187,1764090257323,-9406.73779774,4e-05,2]
[394895188,1764090257396,-10000.01,4e-05,2]
[394895189,1764090257669,-10000.01,4e-05,2]
[394895190,1764090257803,-10000.01,4e-05,2]
[394895191,1764090257948,-2726.14146489,4e-05,2]
[394895192,1764090257978,-4547.72707022,4e-05,2]
[394895193,1764090301697,151.04,1e-05,2]
[394895194,1764090302009,151.04,1.1e-05,2]
[394895195,1764090302306,151.04,1.1e-05,2]
[394895196,1764090302604,151.04,1.2e-05,2]
[394895197,1764090302878,151.04,1.3e-05,2]
[394895198,1764090303176,151.04,1.3e-05,2]
[394895199,1764090303708,151.04,1.4e-05,2]
[394895200,1764090303849,151.04,1.5e-05,2]
[394895201,1764090304056,151.04,1.5e-05,2]
[394895202,1764090304471,151.04,1.6e-05,2]
[394895203,1764090304797,151.04,1.7e-05,2]
[394895204,1764090305171,151.04,1.8e-05,2]
[394895205,1764090311377,216.0,0.0002144,120]
[394895206,1764090391545,8187.52,3.424e-05,2]
[394895207,1764090391574,4046.0,3.424e-05,2]
[394895208,1764090391786,7774.1866575,3.424e-05,2]
[394895209,1764090405122,-152.34657679,3.899e-05,2]
[394895211,1764090530879,160.4935022,3.003e-05,2]
[394895212,1764090571069,-603.0339644,3.683e-05,2]
[394895234,1764090632112,-1096.29282626,3.683e-05,2]
[394895235,1764090632121,-321.17867811,3.733e-05,2]
[394895237,1764090632131,-300.0,3.783e-05,2]
[394895239,1764090632142,-300.0,3.821e-05,2]
[394895241,1764090632151,-300.0,3.86e-05,2]
[394895243,1764090632160,-500.0,3.873e-05,2]
[394895245,1764090632169,-500.0,3.873e-05,2]
[394895247,1764090632178,-480.38732186,3.873e-05,2]
[394895249,1764090632188,-500.0,3.873e-05,2]
[394895251,1764090632197,-500.0,3.873e-05,2]
[394895253,1764090632206,-500.0,3.873e-05,2]
[394895255,1764090632215,-500.0,3.873e-05,2]
[394895257,1764090632224,-500.0,3.873e-05,2]
[394895258,1764090632234,-500.0,3.873e-05,2]
[394895260,1764090632243,-392.72514848,3.873e-05,2]
[394895262,1764090632252,-500.0,3.873e-05,2]
[394895264,1764090632261,-500.0,3.873e-05,2]
[394895265,1764090632271,-500.0,3.873e-05,2]
[394895266,1764090632280,-300.0,3.899e-05,2]
[394895267,1764090632290,-300.0,3.899e-05,2]
[394895268,1764090632299,-58721.7810333,3.9e-05,2]
[394895269,1764090632311,-452.89601,3.9e-05,2]
[394895285,1764090638091,-5488.16219984,3.861e-05,2]
[394895286,1764090638101,-830825.3229567,3.9e-05,2]
[394895287,1764090638110,-159.74384881,3.954e-05,2]
[394895288,1764090638119,-300.0,4.079e-05,2]
[394895289,1764090638129,-300.0,4.079e-05,2]
[394895290,1764090638138,-300.0,4.079e-05,2]
[394895291,1764090638148,-300.0,4.079e-05,2]
[394895292,1764090638157,-300.0,4.079e-05,2]
[394895293,1764090638167,-300.0,4.079e-05,2]
[394895294,1764090638176,-300.0,4.079e-05,2]
[394895295,1764090638185,-300.0,4.079e-05,2]
[394895296,1764090638195,-300.0,4.079e-05,2]
[394895297,1764090638204,-300.0,4.079e-05,2]
[394895298,1764090638214,-300.0,4.079e-05,2]
[394895299,1764090638223,-300.0,4.079e-05,2]
[394895300,1764090638232,-300.0,4.079e-05,2]
[394895301,1764090638241,-300.0,4.079e-05,2]
[394895302,1764090638250,-300.0,4.079e-05,2]
[394895303,1764090638259,-600.0,4.079e-05,2]
[394895304,1764090638269,-287.0,4.289e-05,2]
[394895305,1764090638278,-420.0,4.289e-05,2]
[394895306,1764090638287,-646.44412713,4.421e-05,2]
[394895307,1764090638297,-494.45472785,4.421e-05,2]
[394895308,1764090638306,-1000.0,4.421e-05,2]
[394895309,1764090638315,-1000.0,4.421e-05,2]
[394895310,1764090638324,-500.0,4.421e-05,2]
[394895311,1764090638333,-1000.0,4.421e-05,2]
[394895312,1764090638343,-485.82132519,4.421e-05,2]
[394895313,1764090638352,-1000.0,4.421e-05,2]
[394895314,1764090638361,-1000.0,4.421e-05,2]
[394895315,1764090638370,-666.22185447,4.421e-05,2]
[394895316,1764090638379,-1000.0,4.421e-05,2]
[394895317,1764090638389,-720.0,4.487e-05,2]
[394895318,1764090638398,-432.0,4.718e-05,2]
[394895319,1764090638408,-7433.2107447,4.914e-05,2]
[394895320,1764090638417,-864.0,4.936e-05,2]
[394895321,1764090638427,-1378.87567137,4.968e-05,2]
[394895322,1764090638437,-1500.0,4.968e-05,2]
[394895323,1764090638446,-1500.0,4.968e-05,2]
[394895324,1764090638455,-1002.74999121,4.968e-05,2]
[394895325,1764090638465,-1500.0,4.968e-05,2]
[394895326,1764090638475,-1500.0,4.968e-05,2]
[394895327,1764090638485,-500.0,4.973e-05,2]
[394895328,1764090638495,-500.0,4.973e-05,2]
[394895329,1764090638504,-500.0,4.973e-05,2]
[394895330,1764090638514,-500.0,4.973e-05,2]
[394895331,1764090638524,-500.0,4.973e-05,2]
[394895332,1764090638533,-500.0,4.973e-05,2]
[394895333,1764090638542,-500.0,4.973e-05,2]
[394895334,1764090638554,-500.0,4.973e-05,2]
[394895335,1764090638748,-500.0,4.973e-05,2]
[394895336,1764090638759,-500.0,4.973e-05,2]
[394895337,1764090638768,-500.0,4.973e-05,2]
[394895338,1764090638778,-500.0,4.973e-05,2]
[394895339,1764090638787,-500.0,4.973e-05,2]
[394895340,1764090638797,-500.0,4.973e-05,2]
[394895341,1764090638807,-500.0,4.973e-05,2]
[394895342,1764090638817,-500.0,4.973e-05,2]
[394895343,1764090638826,-496.35169671,4.973e-05,2]
[394895344,1764090638836,-500.0,4.973e-05,2]
[394895345,1764090638846,-500.0,4.973e-05,2]
[394895346,1764090638855,-198.45710674,4.973e-05,2]
[394895347,1764090638865,-198.47753802,4.973e-05,2]
[394895348,1764090638875,-179.71324144,4.973e-05,2]
[394895349,1764090638884,-151.0,4.973e-05,2]
[394895350,1764090638895,-1017.0,4.973e-05,2]
[394895351,1764090638905,-151.0,4.973e-05,2]
[394895352,1764090638915,-500.0,4.973e-05,2]
[394895353,1764090638926,-159.82445483,4.973e-05,2]
[394895354,1764090638936,-151.0,4.973e-05,2]
[394895355,1764090638946,-500.0,4.973e-05,2]
[394895356,1764090638957,-500.0,4.973e-05,2]
[394895357,1764090638966,-500.0,4.973e-05,2]
[394895358,1764090638976,-523.0,4.973e-05,2]
[394895359,1764090638986,-199.48838974,4.973e-05,2]
[394895360,1764090638996,-500.0,4.973e-05,2]
[394895361,1764090639006,-1112.0,4.973e-05,2]
[394895362,1764090639016,-500.0,4.973e-05,2]
[394895363,1764090639026,-250.0,4.997e-05,2]
[394895364,1764090639035,-250.0,4.997e-05,2]
[394895365,1764090639045,-250.0,4.997e-05,2]
[394895366,1764090639054,-250.0,4.997e-05,2]
[394895367,1764090639064,-250.0,4.997e-05,2]
[394895368,1764090639074,-250.0,4.997e-05,2]
[394895369,1764090639084,-250.0,4.997e-05,2]
[394895370,1764090639093,-250.0,4.997e-05,2]
[394895371,1764090639103,-250.0,4.997e-05,2]
[394895372,1764090639113,-250.0,4.997e-05,2]
[394895373,1764090639123,-250.0,4.997e-05,2]
[394895374,1764090639132,-209.40437684,4.997e-05,2]
[394895375,1764090639142,-4077.22430957,5e-05,2]
[394895376,1764090639152,-500.0,5e-05,2]
[394895377,1764090639162,-525.87545973,5e-05,2]
[394895378,1764090639171,-291.48965634,5e-05,2]
[394895379,1764090639181,-500.0,5e-05,2]
[394895380,1764090639190,-500.0,5e-05,2]
[394895381,1764090639200,-500.0,5e-05,2]
[394895382,1764090639212,-500.0,5e-05,2]
[394895383,1764090639221,-500.0,5e-05,2]
[394895384,1764090639232,-500.0,5e-05,2]
[394895385,1764090639241,-500.0,5e-05,2]
[394895386,1764090639250,-500.0,5e-05,2]
[394895387,1764090639259,-500.0,5e-05,2]
[394895388,1764090639269,-500.0,5e-05,2]
[394895389,1764090639278,-500.0,5e-05,2]
[394895390,1764090639287,-500.0,5e-05,2]
[394895391,1764090639297,-500.0,5e-05,2]
[394895392,1764090639307,-500.0,5e-05,2]
[394895393,1764090639317,-500.0,5e-05,2]
[394895394,1764090639327,-500.0,5e-05,2]
[394895395,1764090639336,-500.0,5e-05,2]
[394895396,1764090639346,-500.0,5e-05,2]
[394895397,1764090639355,-500.0,5e-05,2]
[394895398,1764090639365,-500.0,5e-05,2]
[394895399,1764090639374,-500.0,5e-05,2]
[394895400,1764090639383,-500.0,5e-05,2]
[394895401,1764090639392,-500.0,5e-05,2]
[394895402,1764090639402,-500.0,5e-05,2]
[394895403,1764090639411,-500.0,5e-05,2]
[394895404,1764090639420,-500.0,5e-05,2]
[394895405,1764090639430,-500.0,5e-05,2]
[394895406,1764090639439,-500.0,5e-05,2]
[394895407,1764090639448,-500.0,5e-05,2]
[394895408,1764090639458,-500.0,5e-05,2]
[394895409,1764090639468,-500.0,5e-05,2]
[394895410,1764090639477,-500.0,5e-05,2]
[394895411,1764090639487,-500.0,5e-05,2]
[394895412,1764090639496,-256.84882102,5e-05,2]
[394895413,1764090639505,-500.0,5e-05,2]
[394895414,1764090639514,-500.0,5e-05,2]
[394895415,1764090639524,-500.0,5e-05,2]
[394895416,1764090639533,-500.0,5e-05,2]
[394895417,1764090639542,-500.0,5e-05,2]
[394895418,1764090639554,-500.0,5e-05,2]
[394895419,1764090639563,-500.0,5e-05,2]
[394895420,1764090639572,-500.0,5e-05,2]
[394895421,1764090639581,-500.0,5e-05,2]
[394895422,1764090639591,-500.0,5e-05,2]
[394895423,1764090639600,-598.77776154,5e-05,2]
[394895424,1764090639610,-500.0,5e-05,2]
[394895425,1764090639619,-500.0,5e-05,2]
[394895426,1764090639630,-500.0,5e-05,2]
[394895427,1764090639639,-500.0,5e-05,2]
[394895428,1764090639650,-500.0,5e-05,2]
[394895429,1764090639660,-500.0,5e-05,2]
[394895430,1764090639669,-500.0,5e-05,2]
[394895431,1764090639679,-500.0,5e-05,2]
[394895432,1764090639689,-550.0,5e-05,2]
[394895433,1764090639698,-500.0,5e-05,2]
[394895434,1764090639707,-500.0,5e-05,2]
[394895435,1764090639716,-500.0,5e-05,2]
[394895436,1764090639725,-500.0,5e-05,2]
[394895437,1764090639734,-500.0,5e-05,2]
[394895438,1764090639743,-500.0,5e-05,2]
[394895439,1764090639753,-557.24459348,5e-05,2]
[394895440,1764090639762,-3803.25649259,5e-05,2]
[394895441,1764090639772,-3803.25649259,5e-05,2]
[394895442,1764090639781,-3803.25649259,5e-05,2]
[394895443,1764090639790,-3803.25649259,5e-05,2]
[394895444,1764090639800,-3803.25649259,5e-05,2]
[394895445,1764090639810,-3803.25649259,5e-05,2]
[394895446,1764090639819,-3803.25649259,5e-05,2]
[394895447,1764090639828,-3803.25649259,5e-05,2]
[394895448,1764090639838,-3803.25649259,5e-05,2]
[394895449,1764090639847,-3803.25649259,5e-05,2]
[394895450,1764090639857,-3803.25649259,5e-05,2]
[394895451,1764090639866,-3803.25649259,5e-05,2]
[394895452,1764090639876,-3803.25649259,5e-05,2]
[394895454,1764090639886,-3803.25649259,5e-05,2]
[394895455,1764090639897,-3803.25649259,5e-05,2]
[394895456,1764090639907,-3803.25649259,5e-05,2]
[394895457,1764090639917,-3803.25649259,5e-05,2]
[394895458,1764090639927,-3803.25649259,5e-05,2]
[394895459,1764090639938,-3803.25649259,5e-05,2]
[394895460,1764090639949,-3803.25649259,5e-05,2]
[394895461,1764090639959,-3803.25649259,5e-05,2]
[394895462,1764090639968,-3803.25649259,5e-05,2]
[394895463,1764090639978,-3803.25649259,5e-05,2]
[394895464,1764090639988,-3803.25649259,5e-05,2]
[394895465,1764090639997,-3803.25649259,5e-05,2]
[394895466,1764090640007,-3803.25649259,5e-05,2]
[394895467,1764090640017,-3803.25649259,5e-05,2]
[394895468,1764090640026,-3803.25649259,5e-05,2]
[394895469,1764090640036,-3803.25649259,5e-05,2]
[394895470,1764090640046,-3803.25649259,5e-05,2]
[394895471,1764090640056,-3803.25649259,5e-05,2]
[394895472,1764090640066,-3803.25649259,5e-05,2]
[394895473,1764090640075,-3803.25649259,5e-05,2]
[394895474,1764090640085,-3803.25649259,5e-05,2]
[394895475,1764090640095,-3803.25649259,5e-05,2]
[394895476,1764090640104,-3803.25649259,5e-05,2]
[394895477,1764090640114,-3803.25649259,5e-05,2]
[394895478,1764090640124,-3803.25649259,5e-05,2]
[394895479,1764090640133,-3803.25649259,5e-05,2]
[394895480,1764090640142,-3803.25649259,5e-05,2]
[394895481,1764090640154,-3803.25649259,5e-05,2]
[394895482,1764090640163,-3803.25649259,5e-05,2]
[394895483,1764090640172,-3803.25649259,5e-05,2]
[394895484,1764090640181,-3803.25649259,5e-05,2]
[394895485,1764090640190,-3803.25649259,5e-05,2]
[394895486,1764090640200,-3803.25649259,5e-05,2]
[394895487,1764090640209,-3803.25649259,5e-05,2]
[394895488,1764090640218,-3803.25649259,5e-05,2]
[394895489,1764090640227,-3803.25649259,5e-05,2]
[394895490,1764090640237,-3803.25649259,5e-05,2]
[394895491,1764090640246,-3803.25649259,5e-05,2]
[394895492,1764090640255,-3803.25649259,5e-05,2]
[394895493,1764090640264,-3803.25649259,5e-05,2]
[394895494,1764090640273,-3803.25649259,5e-05,2]
[394895495,1764090640282,-3803.25649259,5e-05,2]
[394895496,1764090640291,-3803.25649259,5e-05,2]
[394895497,1764090640299,-3803.25649259,5e-05,2]
[394895498,1764090640308,-3803.25649259,5e-05,2]
[394895499,1764090640317,-3803.25649259,5e-05,2]
[394895500,1764090640326,-3803.25649259,5e-05,2]
[394895501,1764090640335,-3803.25649259,5e-05,2]
[394895502,1764090640344,-3803.25649259,5e-05,2]
[394895504,1764090640353,-3803.25649259,5e-05,2]
[394895505,1764090640362,-340.55484968,5e-05,2]
[394895506,1764090640389,-3462.70164291,5e-05,2]
[394895507,1764090640399,-3803.25649259,5e-05,2]
[394895508,1764090640408,-3803.25649259,5e-05,2]
[394895509,1764090640418,-3803.25649259,5e-05,2]
[394895510,1764090640427,-3803.25649259,5e-05,2]
[394895511,1764090640436,-3803.25649259,5e-05,2]
[394895512,1764090640446,-3803.25649259,5e-05,2]
[394895513,1764090640455,-3803.25649259,5e-05,2]
[394895514,1764090640464,-3803.25649259,5e-05,2]
[394895515,1764090640473,-3803.25649259,5e-05,2]
[394895516,1764090640482,-3803.25649259,5e-05,2]
[394895517,1764090640491,-3803.25649259,5e-05,2]
[394895518,1764090640500,-3803.25649259,5e-05,2]
[394895519,1764090640509,-3803.25649259,5e-05,2]
[394895520,1764090640519,-3803.25649259,5e-05,2]
[394895521,1764090640528,-3803.25649259,5e-05,2]
[394895522,1764090640537,-3803.25649259,5e-05,2]
[394895523,1764090640547,-3803.25649259,5e-05,2]
[394895524,1764090640562,-3803.25649259,5e-05,2]
[394895525,1764090640570,-3803.25649259,5e-05,2]
[394895527,1764090640579,-3803.25649259,5e-05,2]
[394895528,1764090640588,-3803.25649259,5e-05,2]
[394895529,1764090640598,-3803.25649259,5e-05,2]
[394895530,1764090640607,-3803.25649259,5e-05,2]
[394895531,1764090640616,-3803.25649259,5e-05,2]
[394895532,1764090640626,-3803.25649259,5e-05,2]
[394895533,1764090640635,-3803.25649259,5e-05,2]
[394895534,1764090640645,-500.0,5e-05,2]
[394895535,1764090640655,-195.86915592,5e-05,2]
[394895536,1764090640664,-505.06519477,5e-05,2]
[394895537,1764090640672,-505.06519477,5e-05,2]
[394895538,1764090640681,-505.06519477,5e-05,2]
[394895539,1764090640690,-505.06519477,5e-05,2]
[394895540,1764090640700,-505.06519477,5e-05,2]
[394895541,1764090640709,-505.06519477,5e-05,2]
[394895542,1764090640718,-505.06519477,5e-05,2]
[394895543,1764090640728,-505.06519477,5e-05,2]
[394895544,1764090640738,-505.06519477,5e-05,2]
[394895545,1764090640748,-505.06519477,5e-05,2]
[394895546,1764090640757,-505.06519477,5e-05,2]
[394895547,1764090640767,-505.06519477,5e-05,2]
[394895548,1764090640776,-505.06519477,5e-05,2]
[394895549,1764090640785,-505.06519477,5e-05,2]
[394895550,1764090640794,-505.06519477,5e-05,2]
[394895551,1764090640803,-505.06519477,5e-05,2]
[394895552,1764090640812,-505.06519477,5e-05,2]
[394895553,1764090640821,-206.28,5e-05,2]
[394895554,1764090640830,-515.16649867,5e-05,2]
[394895555,1764090640839,-515.16649867,5e-05,2]
[394895556,1764090640848,-515.16649867,5e-05,2]
[394895557,1764090640857,-515.16649867,5e-05,2]
[394895558,1764090640867,-515.16649867,5e-05,2]
[394895559,1764090640876,-515.16649867,5e-05,2]
[394895560,1764090640885,-515.16649867,5e-05,2]
[394895561,1764090640894,-515.16649867,5e-05,2]
[394895562,1764090640904,-515.16649867,5e-05,2]
[394895563,1764090640913,-515.16649867,5e-05,2]
[394895564,1764090640923,-500.0,5e-05,2]
[394895565,1764090640931,-422.0,5e-05,2]
[394895566,1764090640941,-341.98255865,5e-05,2]
[394895567,1764090640951,-610.39504755,5.1e-05,2]
[394895568,1764090640960,-151.0,5.11e-05,2]
[394895569,1764090640969,-1017.0,5.11e-05,2]
[394895570,1764090640978,-151.0,5.11e-05,2]
[394895571,1764090640987,-500.0,5.11e-05,2]
[394895572,1764090640997,-151.0,5.11e-05,2]
[394895573,1764090641006,-500.0,5.11e-05,2]
[394895574,1764090641015,-500.0,5.11e-05,2]
[394895575,1764090641025,-500.0,5.11e-05,2]
[394895576,1764090641034,-523.0,5.11e-05,2]
[394895577,1764090641043,-500.0,5.11e-05,2]
[394895578,1764090641054,-1112.0,5.11e-05,2]
[394895579,1764090641063,-500.0,5.11e-05,2]
[394895580,1764090641072,-500.0,5.137e-05,2]
[394895581,1764090641082,-422.0,5.137e-05,2]
[394895582,1764090641091,-211.64,5.147e-05,2]
[394895583,1764090641101,-6335.06462997,5.199e-05,2]
[394895584,1764090641110,-159.5,5.221e-05,2]
[394895585,1764090641119,-500.0,5.247e-05,2]
[394895586,1764090641128,-299.4726027,5.247e-05,2]
[394895587,1764090641138,-1017.0,5.247e-05,2]
[394895588,1764090641148,-151.0,5.247e-05,2]
[394895589,1764090641157,-500.0,5.247e-05,2]
[394895590,1764090641166,-198.5559859,5.247e-05,2]
[394895591,1764090641175,-500.0,5.247e-05,2]
[394895592,1764090641185,-500.0,5.247e-05,2]
[394895593,1764090641193,-192.1393581,5.247e-05,2]
[394895594,1764090641203,-523.0,5.247e-05,2]
[394895595,1764090641212,-342.34600556,5.247e-05,2]
[394895596,1764090641221,-1112.0,5.247e-05,2]
[394895597,1764090641230,-574.28296262,5.247e-05,2]
[394895598,1764090641239,-500.0,5.274e-05,2]
[394895599,1764090641248,-422.0,5.274e-05,2]
[394895600,1764090641257,-2254.21565313,5.281e-05,2]
[394895601,1764090641266,-630.0,5.375e-05,2]
[394895602,1764090641275,-2152.0,5.375e-05,2]
[394895603,1764090641285,-990.0,5.375e-05,2]
[394895604,1764090641294,-1017.0,5.384e-05,2]
[394895605,1764090641304,-235.64729996,5.384e-05,2]
[394895606,1764090641313,-500.0,5.384e-05,2]
[394895607,1764090641322,-500.0,5.384e-05,2]
[394895608,1764090641331,-500.0,5.384e-05,2]
[394895609,1764090641340,-523.0,5.384e-05,2]
[394895610,1764090641349,-1112.0,5.384e-05,2]
[394895611,1764090641358,-4077.22430957,5.409e-05,2]
[394895612,1764090641367,-336.62024775,5.411e-05,2]
[394895613,1764090641376,-422.0,5.411e-05,2]
[394895614,1764090641386,-1000.0,5.429e-05,2]
[394895615,1764090641395,-250.395,5.439e-05,2]
[394895616,1764090641406,-250.0,5.439e-05,2]
[394895617,1764090641416,-217.777,5.439e-05,2]
[394895618,1764090641426,-237.148,5.439e-05,2]
[394895619,1764090641435,-500.0,5.479e-05,2]
[394895620,1764090641445,-619.47365394,5.479e-05,2]
[394895621,1764090641455,-7419.8081742,5.479e-05,2]
[394895622,1764090641465,-250.0,5.516e-05,2]
[394895623,1764090641474,-258.228,5.516e-05,2]
[394895624,1764090641483,-257.875,5.516e-05,2]
[394895625,1764090641493,-265.876,5.516e-05,2]
[394895626,1764090641502,-1290.3997837,5.516e-05,2]
[394895627,1764090641511,-2000.0,5.516e-05,2]
[394895628,1764090641520,-2000.0,5.516e-05,2]
[394895629,1764090641530,-2000.0,5.516e-05,2]
[394895630,1764090641539,-500.0,5.521e-05,2]
[394895631,1764090641550,-1034.54514069,5.521e-05,2]
[394895632,1764090641563,-221.58940864,5.521e-05,2]
[394895633,1764090642083,-375.55608942,5.521e-05,2]
[394895634,1764090642092,-1000.0,5.521e-05,2]
[394895635,1764090642102,-224.20182335,5.521e-05,2]
[394895636,1764090642369,-3e-08,5.521e-05,2]
[394895653,1764090646340,-18191.91999997,3.8e-05,2]
[394895654,1764090646447,-15140.34725795,3.8e-05,2]
[394895655,1764090751833,158.29888,0.0002,30]
[394895656,1764090837274,-583.68254694,3.762e-05,2]
[394895657,1764090839258,-313.69268593,3.724e-05,2]
[394895658,1764090840644,-458.91167693,3.724e-05,2]
[394895659,1764090841488,-386.28870249,3.762e-05,2]
[394895660,1764090843977,-333.27002933,3.762e-05,2]
[394895661,1764090846016,-192.81257279,3.8e-05,2]
[394895662,1764090846504,3047.34717618,3.724e-05,2]
[394895663,1764090849403,-287.37240292,3.8e-05,2]
[394895664,1764090851645,-297.17602716,3.8e-05,2]
[394895665,1764090854144,-307.18742721,3.8e-05,2]
[394895666,1764090856121,-2932.76999553,3.8e-05,2]
[394895667,1764090857265,-325.61409922,3.873e-05,2]
[394895668,1764090867811,-153.90257288,3.873e-05,2]
[394895669,1764090872695,-174.38590078,3.834e-05,2]
[394895670,1764090917692,363.0,0.000204,120]
[394895671,1764090919332,363.0,0.0002142,120]
[394895673,1764091105847,5000.0,0.00014,10]
[394895674,1764091213755,259.0,0.00020104,120]
[394895675,1764091214960,259.0,0.00021109,120]
[394895676,1764091238035,464.0,0.00018998,120]
[394895677,1764091239330,464.0,0.00019948,120]
[394895678,1764091240665,464.0,0.00020945,120]
[394895696,1764091514405,173.0,0.00020114,120]
[394895698,1764091515567,173.0,0.00021119,120]
[394895699,1764091534603,279.0,0.00019035,120]
[394895700,1764091535886,279.0,0.00019987,120]
[394895701,1764091537296,279.0,0.00020986,120]
[394895703,1764091619118,-192.50408972,4.523e-05,2]
[394895715,1764091814332,174.0,0.0002012,120]
[394895716,1764091815623,174.0,0.00021126,120]
[394895762,1764091832346,-661.6,4.478e-05,2]
[394895863,1764091836546,167.0,0.00019045,120]
[394895869,1764091837979,167.0,0.00019997,120]
[394895874,1764091838440,-1192.38614843,4.478e-05,2]
[394895875,1764091838451,-1501.08898084,4.478e-05,2]
[394895876,1764091838462,-5107.19581441,4.478e-05,2]
[394895877,1764091838471,-300.0,4.541e-05,2]
[394895878,1764091838480,-633.0,4.542e-05,2]
[394895879,1764091838490,-3007.1653188,4.543e-05,2]
[394895880,1764091838499,-164.9462938,4.543e-05,2]
[394895881,1764091838508,-317.83315601,4.569e-05,2]
[394895882,1764091838517,-156.26580355,4.611e-05,2]
[394895883,1764091838527,-8654.7750334,4.615e-05,2]
[394895884,1764091838720,-300.0,4.706e-05,2]
[394895885,1764091838730,-300.0,4.706e-05,2]
[394895886,1764091838740,-300.0,4.706e-05,2]
[394895887,1764091838749,-300.0,4.706e-05,2]
[394895888,1764091838759,-300.0,4.706e-05,2]